[Event "FIDE WYCC Girls U14 2023"]
[Site "Montesilvano"]
[Date "2023.11.13"]
[Round "1.10"]
[White "Jiang, Tianyu"]
[Black "Aswinika Mani R"]
[Result "1-0"]
[ECO "B51"]
[WhiteElo "1917"]
[BlackElo "1472"]
[Annotator "NA"]
[PlyCount "85"]
[EventDate "2023.11.13"]
[EventType "swiss"]
[EventCountry "ITA"]
[SourceTitle "playchess.com"]
[Source "ChessBase"]
[SourceQuality "1"]
[TimeControl "40/5400+30:1800+30"]

1. e4 {[%emt 0:00:04]} c5 {[%emt 0:00:31]} 2. Nf3 {[%emt 0:00:36]} d6 {[%emt 0:00:07]} 3. Bb5+ {[%emt 0:00:07]} Nd7 {[%emt 0:01:14]} 4. d4 {[%emt 0:04:16]} cxd4 {[%emt 0:03:00]} 5. Qxd4 {[%emt 0:00:06]} a6 {[%emt 0:03:06]} 6. Be2 {[%emt 0:00:26]} Ngf6 {[%emt 0:01:15]} 7. O-O {[%emt 0:00:09]} g6 {[%emt 0:00:57]} 8. Nc3 {[%emt 0:02:57]} Bg7 {[%emt 0:02:10]} 9. Rd1 {[%emt 0:00:12]} O-O {[%emt 0:03:42]} 10. e5 {[%emt 0:02:53]} Nh5 {[%emt 0:04:22]} 11. Qh4 dxe5 {[%emt 0:06:56]} 12. Ng5 {[%emt 0:26:37]} h6 {[%emt 0:03:25]} 13. Nge4 {[%emt 0:17:57]} e6 {[%emt 0:06:04]} 14. Qxd8 {[%emt 0:09:31]} Rxd8 {[%emt 0:00:42]} 15. Be3 {[%emt 0:05:27]} Nf4 {[%emt 0:02:40]} 16. Bf3 {[%emt 0:03:06]} Nd5 {[%emt 0:08:30]} 17. Nxd5 {[%emt 0:02:14]} exd5 {[%emt 0:00:02]} 18. Rxd5 {[%emt 0:00:06]} f5 {[%emt 0:00:12]} 19. Nc5 {[%emt 0:04:53]} Kf7 {[%emt 0:09:30]} 20. Rad1 {[%emt 0:01:44]} Ke7 {[%emt 0:01:58]} 21. Rd6 {[%emt 0:05:20]} e4 {[%emt 0:06:18]} 22. Be2 {[%emt 0:04:24]} b6 {[%emt 0:05:05]} 23. Ne6 {[%emt 0:01:05]} Rg8 {[%emt 0:01:11]} 24. Nxg7 {[%emt 0:00:37]} Rxg7 {[%emt 0:00:37]} 25. Bxh6 {[%emt 0:00:13]} Rg8 {[%emt 0:01:56]} 26. Bc4 {[%emt 0:01:20]} Rh8 {[%emt 0:00:42]} 27. Re6+ {[%emt 0:03:08]} Kd8 {[%emt 0:00:13]} 28. Bg5+ {[%emt 0:00:11]} Kc7 {[%emt 0:00:07]} 29. Bf4+ {[%emt 0:00:07]} Kd8 {[%emt 0:00:14]} 30. Rxg6 {[%emt 0:00:24]} Bb7 {[%emt 0:00:32]} 31. Be6 {[%emt 0:01:29]} Bc6 {[%emt 0:00:11]} 32. Bxf5 {[%emt 0:00:24]} Bb5 {[%emt 0:00:33]} 33. c4 {[%emt 0:00:20]} Bxc4 {[%emt 0:00:38]} 34. Rxd7+ {[%emt 0:00:38]} Ke8 {[%emt 0:00:05]} 35. Rgg7 {[%emt 0:00:23]} Rd8 {[%emt 0:00:34]} 36. Bg6+ {[%emt 0:00:11]} Bf7 {[%emt 0:00:12]} 37. Rxd8+ {[%emt 0:00:31]} Kxd8 {[%emt 0:00:02]} 38. Rxf7 {[%emt 0:00:15]} Kc8 {[%emt 0:00:14]} 39. Ra7 {[%emt 0:00:36]} Rh4 {[%emt 0:00:16]} 40. Bf5+ {[%emt 0:00:00]} Kd8 {[%emt 0:00:00]} 41. Bg5+ {[%emt 0:00:24]} Ke8 {[%emt 0:00:15]} 42. Bg6+ {[%emt 0:00:16]} Kf8 {[%emt 0:00:04]} 43. Bf6 {[%emt 0:00:11]} 1-0

[Event "FIDE WYCC Girls U14 2023"]
[Site "Montesilvano"]
[Date "2023.11.13"]
[Round "1.11"]
[White "Macek, Inti"]
[Black "Goriachkina, Oksana"]
[Result "0-1"]
[ECO "D45"]
[WhiteElo "1472"]
[BlackElo "1915"]
[Annotator "NA"]
[PlyCount "120"]
[EventDate "2023.11.13"]
[EventType "swiss"]
[EventCountry "ITA"]
[SourceTitle "playchess.com"]
[Source "ChessBase"]
[SourceQuality "1"]
[TimeControl "40/5400+30:1800+30"]

1. d4 {[%emt 0:00:03]} d5 {[%emt 0:00:03]} 2. Nf3 {[%emt 0:00:06]} Nf6 {[%emt 0:00:11]} 3. c4 {[%emt 0:00:13]} e6 {[%emt 0:00:03]} 4. Nc3 {[%emt 0:00:31]} c6 {[%emt 0:00:04]} 5. e3 {[%emt 0:02:23]} a6 {[%emt 0:00:08]} 6. a3 {[%emt 0:10:00]} Nbd7 {[%emt 0:03:19]} 7. cxd5 {[%emt 0:00:15]} exd5 {[%emt 0:02:17]} 8. Bd3 {[%emt 0:03:00]} Bd6 {[%emt 0:00:16]} 9. O-O {[%emt 0:00:09]} O-O {[%emt 0:01:05]} 10. b3 {[%emt 0:04:02]} Re8 {[%emt 0:01:20]} 11. Qc2 {[%emt 0:00:38]} Qe7 {[%emt 0:06:25]} 12. Nd2 {[%emt 0:03:55]} c5 {[%emt 0:02:26]} 13. Bb2 {[%emt 0:03:00]} cxd4 {[%emt 0:12:11]} 14. exd4 {[%emt 0:00:08]} Nf8 {[%emt 0:00:03]} 15. Na4 {[%emt 0:05:42]} Be6 {[%emt 0:13:37]} 16. Bf5 {[%emt 0:11:07]} Nh5 {[%emt 0:10:59]} 17. Bxe6 {[%emt 0:03:02]} Qxe6 {[%emt 0:02:34]} 18. Rfe1 {[%emt 0:05:37]} Qg4 {[%emt 0:10:05]} 19. h3 {[%emt 0:02:20]} Qf4 {[%emt 0:01:54]} 20. Nf3 {[%emt 0:01:20]} Rac8 {[%emt 0:03:40]} 21. Qd3 {[%emt 0:01:52]} Qf6 {[%emt 0:02:35]} 22. Rxe8 {[%emt 0:06:03]} Rxe8 {[%emt 0:00:13]} 23. Bc1 {[%emt 0:00:58]} Ne6 {[%emt 0:07:14]} 24. g3 {[%emt 0:04:56]} Qe7 {[%emt 0:01:51]} 25. Nc3 {[%emt 0:03:59]} Nf6 {[%emt 0:02:17]} 26. b4 {[%emt 0:03:25]} Qc7 {[%emt 0:02:03]} 27. Be3 {[%emt 0:01:04]} Bxg3 {[%emt 0:02:01]} 28. Rc1 {[%emt 0:05:09]} Qb8 {[%emt 0:01:36]} 29. Ne2 {[%emt 0:00:41]} Bd6 {[%emt 0:03:15]} 30. Kg2 {[%emt 0:04:32]} Ne4 {[%emt 0:03:01]} 31. Nd2 {[%emt 0:02:12]} Nf4+ {[%emt 0:02:41]} 32. Nxf4 {[%emt 0:00:37]} Bxf4 {[%emt 0:00:04]} 33. Nxe4 {[%emt 0:00:52]} dxe4 {[%emt 0:00:12]} 34. Qd2 {[%emt 0:00:27]} Bxe3 {[%emt 0:00:26]} 35. fxe3 {[%emt 0:00:35]} h6 {[%emt 0:01:06]} 36. Qf2 {[%emt 0:01:09]} Re6 {[%emt 0:01:04]} 37. Rf1 {[%emt 0:02:00]} Rg6+ {[%emt 0:00:53]} 38. Kh1 {[%emt 0:00:12]} Qg3 {[%emt 0:02:06]} 39. Qxg3 {[%emt 0:01:16]} Rxg3 {[%emt 0:00:01]} 40. Re1 {[%emt 0:00:00]} Rxh3+ {[%emt 0:00:00]} 41. Kg2 {[%emt 0:00:51]} Rf3 {[%emt 0:03:10]} 42. a4 {[%emt 0:00:40]} h5 {[%emt 0:03:47]} 43. Rc1 {[%emt 0:00:57]} h4 {[%emt 0:02:16]} 44. Rc7 {[%emt 0:00:26]} Rxe3 {[%emt 0:02:18]} 45. Rxb7 {[%emt 0:00:47]} Rd3 {[%emt 0:01:55]} 46. Rd7 {[%emt 0:00:19]} h3+ {[%emt 0:00:31]} 47. Kh2 {[%emt 0:00:12]} e3 {[%emt 0:00:57]} 48. b5 {[%emt 0:00:48]} axb5 {[%emt 0:00:06]} 49. axb5 {[%emt 0:00:06]} e2 {[%emt 0:00:36]} 50. Re7 {[%emt 0:00:05]} Rxd4 51. Rxe2 {[%emt 0:00:20]} Rb4 {[%emt 0:00:39]} 52. Re5 {[%emt 0:00:15]} Rb3 {[%emt 0:00:16]} 53. Re8+ {[%emt 0:00:26]} Kh7 {[%emt 0:00:09]} 54. Rb8 {[%emt 0:00:05]} g6 {[%emt 0:02:53]} 55. b6 {[%emt 0:00:32]} Kh6 {[%emt 0:01:09]} 56. b7 Kg5 57. Ra8 {[%emt 0:04:41]} Rxb7 {[%emt 0:00:42]} 58. Ra5+ {[%emt 0:00:14]} f5 {[%emt 0:00:15]} 59. Kxh3 {[%emt 0:00:05]} Rb3+ {[%emt 0:00:16]} 60. Kg2 {[%emt 0:00:23]} Kg4 0-1

[Event "FIDE WYCC Girls U14 2023"]
[Site "Montesilvano"]
[Date "2023.11.13"]
[Round "1.12"]
[White "Tsetskhladze, Mariam"]
[Black "Seyhan, Pelin"]
[Result "1-0"]
[ECO "B31"]
[WhiteElo "1911"]
[BlackElo "1461"]
[Annotator "NA"]
[PlyCount "151"]
[EventDate "2023.11.13"]
[EventType "swiss"]
[EventCountry "ITA"]
[SourceTitle "playchess.com"]
[Source "ChessBase"]
[SourceQuality "1"]
[TimeControl "40/5400+30:1800+30"]

1. e4 {[%emt 0:00:14]} c5 {[%emt 0:00:07]} 2. Nf3 {[%emt 0:00:12]} Nc6 {[%emt 0:00:06]} 3. Bb5 {[%emt 0:00:11]} g6 {[%emt 0:00:06]} 4. O-O {[%emt 0:00:11]} Bg7 {[%emt 0:00:05]} 5. c3 {[%emt 0:00:06]} Nf6 {[%emt 0:01:06]} 6. Re1 {[%emt 0:02:00]} O-O {[%emt 0:00:07]} 7. d4 {[%emt 0:03:00]} cxd4 {[%emt 0:04:50]} 8. cxd4 {[%emt 0:02:57]} Qa5 {[%emt 0:03:43]} 9. Nc3 {[%emt 0:02:07]} a6 {[%emt 0:03:44]} 10. Bf1 {[%emt 0:03:35]} d5 {[%emt 0:08:40]} 11. e5 {[%emt 0:00:45]} Ne4 {[%emt 0:04:06]} 12. Nxe4 {[%emt 0:08:43]} dxe4 {[%emt 0:00:34]} 13. Rxe4 {[%emt 0:03:33]} Bf5 {[%emt 0:02:09]} 14. Re1 {[%emt 0:01:55]} Rfd8 {[%emt 0:01:54]} 15. Bd2 {[%emt 0:01:56]} Qd5 {[%emt 0:00:09]} 16. Bc3 {[%emt 0:01:28]} b5 {[%emt 0:01:36]} 17. a3 {[%emt 0:05:11]} Bg4 {[%emt 0:12:03]} 18. Be2 {[%emt 0:01:59]} Rd7 {[%emt 0:02:19]} 19. Qd2 {[%emt 0:06:31]} Rad8 {[%emt 0:05:00]} 20. Rad1 {[%emt 0:07:07]} Qb3 {[%emt 0:02:32]} 21. Qf4 {[%emt 0:06:20]} Bf5 {[%emt 0:09:04]} 22. Qe3 {[%emt 0:17:39]} Bg4 {[%emt 0:18:24]} 23. Qf4 {[%emt 0:07:53]} Bf5 {[%emt 0:02:38]} 24. Rc1 {[%emt 0:02:00]} h6 {[%emt 0:03:18]} 25. Red1 {[%emt 0:02:40]} a5 {[%emt 0:02:58]} 26. Be1 {[%emt 0:02:52]} Qxb2 {[%emt 0:05:41]} 27. Rxc6 {[%emt 0:02:50]} Qxe2 {[%emt 0:00:07]} 28. Rcc1 {[%emt 0:00:34]} a4 {[%emt 0:01:36]} 29. Ba5 {[%emt 0:02:13]} Ra8 {[%emt 0:00:56]} 30. Re1 {[%emt 0:00:43]} Qa2 {[%emt 0:00:27]} 31. Bb4 {[%emt 0:00:17]} Be6 {[%emt 0:00:55]} 32. Nd2 {[%emt 0:01:36]} Rad8 {[%emt 0:00:50]} 33. Bc5 {[%emt 0:00:28]} g5 {[%emt 0:00:46]} 34. Qe3 {[%emt 0:00:45]} Bd5 {[%emt 0:01:51]} 35. Ne4 {[%emt 0:01:17]} Bxe4 {[%emt 0:01:36]} 36. Qxe4 {[%emt 0:00:01]} e6 {[%emt 0:01:18]} 37. Qc6 {[%emt 0:00:22]} Rd5 {[%emt 0:00:40]} 38. Qxb5 {[%emt 0:00:25]} Qd2 {[%emt 0:00:20]} 39. Qxa4 {[%emt 0:01:02]} g4 {[%emt 0:01:02]} 40. Qb4 {[%emt 0:00:00]} Qf4 {[%emt 0:00:00]} 41. g3 {[%emt 0:02:18]} Qf3 {[%emt 0:00:59]} 42. Qb1 {[%emt 0:04:19]} Bf8 {[%emt 0:02:46]} 43. Re3 {[%emt 0:03:46]} Qf5 {[%emt 0:00:16]} 44. Qxf5 {[%emt 0:00:06]} exf5 {[%emt 0:00:02]} 45. e6 {[%emt 0:01:08]} Bxc5 {[%emt 0:01:44]} 46. dxc5 {[%emt 0:01:11]} Rd1+ {[%emt 0:02:56]} 47. Rxd1 {[%emt 0:00:07]} Rxd1+ {[%emt 0:00:03]} 48. Kg2 {[%emt 0:00:08]} Kf8 {[%emt 0:00:50]} 49. exf7 {[%emt 0:00:30]} Kxf7 {[%emt 0:00:05]} 50. Rc3 {[%emt 0:00:12]} Ke7 {[%emt 0:01:08]} 51. c6 {[%emt 0:00:12]} Kd8 {[%emt 0:00:02]} 52. c7+ {[%emt 0:00:05]} Kc8 {[%emt 0:00:02]} 53. h3 {[%emt 0:00:46]} h5 {[%emt 0:01:30]} 54. hxg4 {[%emt 0:00:08]} fxg4 {[%emt 0:00:35]} 55. Rc5 {[%emt 0:00:51]} Ra1 {[%emt 0:00:49]} 56. Rxh5 {[%emt 0:00:42]} Rxa3 {[%emt 0:00:04]} 57. Rg5 {[%emt 0:00:36]} Ra4 {[%emt 0:00:06]} 58. Rg7 {[%emt 0:00:06]} Rc4 {[%emt 0:00:58]} 59. Kf1 {[%emt 0:00:30]} Re4 {[%emt 0:00:04]} 60. Rf7 {[%emt 0:00:25]} Re5 {[%emt 0:01:13]} 61. Kg2 {[%emt 0:01:50]} Rc5 {[%emt 0:02:03]} 62. Rf4 {[%emt 0:00:25]} Kxc7 {[%emt 0:01:54]} 63. Rxg4 {[%emt 0:00:05]} Kd6 {[%emt 0:00:04]} 64. Re4 {[%emt 0:00:05]} Kd5 {[%emt 0:00:14]} 65. Re1 {[%emt 0:00:06]} Kd4 {[%emt 0:01:07]} 66. g4 {[%emt 0:00:05]} Rc3 {[%emt 0:00:43]} 67. f3 {[%emt 0:00:30]} Kd5 {[%emt 0:00:29]} 68. Kg3 {[%emt 0:00:05]} Rb3 {[%emt 0:00:07]} 69. g5 {[%emt 0:00:04]} Rb2 {[%emt 0:00:14]} 70. f4 {[%emt 0:00:05]} Rb3+ {[%emt 0:00:04]} 71. Kg4 {[%emt 0:00:04]} Rb2 {[%emt 0:00:03]} 72. g6 {[%emt 0:00:09]} Rg2+ {[%emt 0:00:04]} 73. Kf5 {[%emt 0:00:03]} Rh2 {[%emt 0:00:09]} 74. g7 {[%emt 0:00:23]} Rg2 {[%emt 0:00:36]} 75. Kf6 {[%emt 0:00:05]} Rg4 {[%emt 0:00:08]} 76. f5 {[%emt 0:00:05]} 1-0

[Event "FIDE WYCC Girls U14 2023"]
[Site "Montesilvano"]
[Date "2023.11.13"]
[Round "1.13"]
[White "Orazalina, Nursulu"]
[Black "Toth, Lili"]
[Result "1-0"]
[ECO "C77"]
[WhiteElo "1428"]
[BlackElo "2199"]
[Annotator "ChessBase"]
[PlyCount "72"]
[EventDate "2023.11.13"]
[EventType "swiss"]
[EventCountry "ITA"]
[SourceTitle "playchess.com"]
[Source "ChessBase"]
[SourceQuality "1"]
[TimeControl "40/5400+30:1800+30"]

1. e4 {[%emt 0:00:03]} e5 {[%emt 0:00:07]} 2. Nf3 {[%emt 0:00:05]} Nc6 {[%emt 0:00:06]} 3. Bb5 {[%emt 0:00:05]} a6 {[%emt 0:00:08]} 4. Ba4 {[%emt 0:00:04]} Nf6 {[%emt 0:00:17]} 5. d3 {[%emt 0:00:07]} d6 {[%emt 0:00:33]} 6. O-O {[%emt 0:00:10]} g6 {[%emt 0:00:35]} 7. c3 {[%emt 0:00:19]} Bg7 {[%emt 0:00:07]} 8. h3 {[%emt 0:01:15]} O-O {[%emt 0:00:36]} 9. Re1 {[%emt 0:00:06]} b5 {[%emt 0:02:19]} 10. Bc2 {[%emt 0:00:38]} Bb7 {[%emt 0:00:32]} 11. a4 {[%emt 0:01:07]} Re8 {[%emt 0:01:02]} 12. Nbd2 {[%emt 0:01:25]} Nb8 {[%emt 0:15:28]} 13. d4 {[%emt 0:06:31]} Nbd7 {[%emt 0:00:49]} 14. Bd3 {[%emt 0:05:10]} c6 {[%emt 0:14:18]} 15. Nf1 {[%emt 0:15:12]} Qc7 {[%emt 0:00:27]} 16. Ng3 {[%emt 0:01:09]} Nf8 {[%emt 0:03:46]} 17. Be3 {[%emt 0:05:46]} Ne6 {[%emt 0:07:25]} 18. Qd2 {[%emt 0:05:39]} exd4 {[%emt 0:15:50]} 19. cxd4 {[%emt 0:02:18]} d5 {[%emt 0:01:38]} 20. e5 {[%emt 0:00:56]} Nd7 {[%emt 0:00:05]} 21. Rec1 {[%emt 0:09:04]} Qd8 {[%emt 0:00:48]} 22. a5 {[%emt 0:07:37]} c5 {[%emt 0:10:04]} 23. dxc5 {[%emt 0:00:32]} Rc8 {[%emt 0:00:08]} 24. Nd4 {[%emt 0:19:55]} Nexc5 {[%emt 0:10:12]} 25. Bg5 {[%emt 0:11:01]} f6 {[%emt 0:04:20]} 26. exf6 {[%emt 0:01:06]} Bxf6 {[%emt 0:00:22]} 27. Bxf6 {[%emt 0:01:27]} Qxf6 {[%emt 0:00:06]} 28. Be2 {[%emt 0:02:11]} Ne5 {[%emt 0:03:52]} 29. b4 {[%emt 0:02:02]} Ne6 {[%emt 0:04:22]} 30. Nxe6 {[%emt 0:00:40]} Qxe6 {[%emt 0:01:15]} 31. Rxc8 {[%emt 0:01:03]} Bxc8 {[%emt 0:01:41]} 32. Rd1 {[%emt 0:00:40]} Bb7 {[%emt 0:00:43]} 33. Qd4 {[%emt 0:00:47]} Nc4 {[%emt 0:00:41]} 34. Bf3 {[%emt 0:00:26]} Rd8 {[%emt 0:02:12]} 35. Ne4 {[%emt 0:00:17]} Qe5 {[%emt 0:00:30]} 36. Nc5 {[%emt 0:00:31]} Qxd4 1-0

[Event "FIDE WYCC Girls U14 2023"]
[Site "Montesilvano"]
[Date "2023.11.13"]
[Round "1.14"]
[White "Iordache, Alexia-Andreea"]
[Black "Comarnitcaia, Ecaterina"]
[Result "1-0"]
[ECO "E91"]
[WhiteElo "1892"]
[BlackElo "1424"]
[Annotator "NA"]
[PlyCount "73"]
[EventDate "2023.11.13"]
[EventType "swiss"]
[EventCountry "ITA"]
[SourceTitle "playchess.com"]
[Source "ChessBase"]
[SourceQuality "1"]
[TimeControl "40/5400+30:1800+30"]

1. d4 {[%emt 0:00:05]} Nf6 {[%emt 0:00:12]} 2. c4 {[%emt 0:00:05]} g6 {[%emt 0:00:04]} 3. Nc3 {[%emt 0:00:03]} Bg7 {[%emt 0:00:07]} 4. e4 {[%emt 0:00:05]} d6 {[%emt 0:00:05]} 5. Nf3 {[%emt 0:00:14]} O-O {[%emt 0:00:14]} 6. Be2 {[%emt 0:00:04]} Nbd7 {[%emt 0:00:50]} 7. O-O {[%emt 0:00:08]} e5 {[%emt 0:00:12]} 8. Be3 {[%emt 0:00:06]} Ng4 {[%emt 0:00:14]} 9. Bg5 {[%emt 0:00:07]} f6 {[%emt 0:00:08]} 10. Bh4 {[%emt 0:00:05]} g5 {[%emt 0:00:56]} 11. Bg3 {[%emt 0:00:42]} Nh6 {[%emt 0:00:18]} 12. c5 {[%emt 0:01:30]} exd4 {[%emt 0:02:10]} 13. Nxd4 {[%emt 0:01:48]} Nxc5 {[%emt 0:01:44]} 14. b4 {[%emt 0:02:58]} Na6 {[%emt 0:02:02]} 15. Bxa6 {[%emt 0:12:12]} bxa6 {[%emt 0:00:07]} 16. Rc1 {[%emt 0:03:07]} Bd7 {[%emt 0:13:32]} 17. Qb3+ {[%emt 0:05:12]} Kh8 {[%emt 0:01:15]} 18. Ne6 {[%emt 0:05:54]} Bxe6 {[%emt 0:00:29]} 19. Qxe6 {[%emt 0:00:02]} Rc8 {[%emt 0:04:31]} 20. Qc4 {[%emt 0:06:45]} a5 {[%emt 0:03:38]} 21. b5 {[%emt 0:03:43]} f5 {[%emt 0:27:47]} 22. f4 {[%emt 0:19:06]} Ng4 {[%emt 0:06:51]} 23. Nd5 {[%emt 0:01:43]} fxe4 {[%emt 0:00:43]} 24. Qxe4 {[%emt 0:09:38]} gxf4 {[%emt 0:00:48]} 25. Bxf4 {[%emt 0:04:28]} Nf6 {[%emt 0:00:49]} 26. Nxf6 {[%emt 0:00:25]} Qxf6 {[%emt 0:00:11]} 27. Be3 {[%emt 0:00:44]} Qb2 {[%emt 0:03:03]} 28. a4 {[%emt 0:02:22]} Rfe8 {[%emt 0:02:40]} 29. Qg4 {[%emt 0:00:59]} Ra8 {[%emt 0:04:12]} 30. Bf2 {[%emt 0:04:10]} Re7 {[%emt 0:04:16]} 31. Rc4 {[%emt 0:05:48]} d5 {[%emt 0:06:55]} 32. Rf4 {[%emt 0:01:35]} Qc2 {[%emt 0:02:22]} 33. Bh4 {[%emt 0:01:56]} Re4 {[%emt 0:01:24]} 34. Rf8+ {[%emt 0:00:14]} Rxf8 {[%emt 0:00:33]} 35. Rxf8+ {[%emt 0:00:01]} Bxf8 {[%emt 0:00:10]} 36. Bf6+ {[%emt 0:00:02]} Bg7 {[%emt 0:00:10]} 37. Qxg7# {[%emt 0:00:02]} 1-0

[Event "FIDE WYCC Girls U14 2023"]
[Site "Montesilvano"]
[Date "2023.11.13"]
[Round "1.15"]
[White "Sodgerelt Naranbold"]
[Black "Stoll, Lucia"]
[Result "1-0"]
[ECO "C77"]
[WhiteElo "1419"]
[BlackElo "1887"]
[Annotator "NA"]
[PlyCount "95"]
[EventDate "2023.11.13"]
[EventType "swiss"]
[EventCountry "ITA"]
[SourceTitle "playchess.com"]
[Source "ChessBase"]
[SourceQuality "1"]
[TimeControl "40/5400+30:1800+30"]

1. e4 {[%emt 0:01:59]} e5 {[%emt 0:00:07]} 2. Nf3 {[%emt 0:01:27]} Nc6 {[%emt 0:00:05]} 3. Bb5 {[%emt 0:01:33]} a6 {[%emt 0:00:17]} 4. Ba4 {[%emt 0:01:29]} Nf6 {[%emt 0:00:17]} 5. d3 {[%emt 0:01:27]} b5 {[%emt 0:00:48]} 6. Bb3 {[%emt 0:01:30]} Be7 {[%emt 0:01:19]} 7. Nc3 {[%emt 0:01:32]} d6 {[%emt 0:01:23]} 8. a3 {[%emt 0:01:28]} O-O {[%emt 0:05:34]} 9. Nd5 {[%emt 0:01:31]} Re8 {[%emt 0:06:03]} 10. Nxf6+ {[%emt 0:01:33]} Bxf6 {[%emt 0:00:11]} 11. Bd5 {[%emt 0:00:39]} Bd7 {[%emt 0:01:45]} 12. h4 {[%emt 0:01:55]} h6 {[%emt 0:14:08]} 13. Ng5 {[%emt 0:01:56]} Re6 {[%emt 0:38:12]} 14. Nxe6 {[%emt 0:02:49]} fxe6 {[%emt 0:00:09]} 15. Bxc6 {[%emt 0:00:14]} Bxc6 {[%emt 0:00:07]} 16. Qg4 {[%emt 0:00:10]} Kh7 {[%emt 0:03:34]} 17. Qxe6 {[%emt 0:01:47]} Bxh4 {[%emt 0:04:17]} 18. Qf5+ {[%emt 0:02:06]} Kg8 {[%emt 0:05:59]} 19. Bxh6 {[%emt 0:02:47]} Qf6 {[%emt 0:01:58]} 20. Qxf6 {[%emt 0:01:05]} Bxf6 {[%emt 0:00:09]} 21. Be3 {[%emt 0:00:06]} Kf7 {[%emt 0:01:47]} 22. O-O-O {[%emt 0:00:22]} a5 {[%emt 0:01:33]} 23. b3 {[%emt 0:01:47]} d5 {[%emt 0:02:16]} 24. f3 {[%emt 0:01:00]} d4 {[%emt 0:01:11]} 25. Bd2 {[%emt 0:00:12]} Bd7 {[%emt 0:01:20]} 26. f4 {[%emt 0:00:47]} Be7 {[%emt 0:02:15]} 27. Kb2 {[%emt 0:00:35]} a4 {[%emt 0:00:26]} 28. b4 {[%emt 0:02:02]} exf4 {[%emt 0:00:29]} 29. Bxf4 {[%emt 0:00:03]} c5 {[%emt 0:00:30]} 30. bxc5 {[%emt 0:03:40]} Bxc5 {[%emt 0:00:18]} 31. Bd2 {[%emt 0:02:39]} Rc8 {[%emt 0:04:03]} 32. Rh5 {[%emt 0:02:28]} Be6 {[%emt 0:01:33]} 33. Rf1+ {[%emt 0:02:09]} Kg8 {[%emt 0:00:17]} 34. Re5 {[%emt 0:06:58]} Rc6 {[%emt 0:02:07]} 35. Bb4 {[%emt 0:01:06]} Bxb4 {[%emt 0:00:35]} 36. axb4 {[%emt 0:00:01]} Bf7 {[%emt 0:00:38]} 37. Rxb5 Be6 {[%emt 0:00:40]} 38. Rc5 {[%emt 0:01:01]} Rb6 {[%emt 0:00:20]} 39. Ka3 {[%emt 0:00:11]} Ra6 {[%emt 0:00:38]} 40. b5 {[%emt 0:00:00]} Ra8 {[%emt 0:00:00]} 41. b6 {[%emt 0:01:01]} Rb8 {[%emt 0:00:43]} 42. Rc6 {[%emt 0:00:24]} Bg4 {[%emt 0:00:54]} 43. Rf4 {[%emt 0:00:11]} Bh5 {[%emt 0:00:46]} 44. e5 {[%emt 0:00:24]} Be8 {[%emt 0:00:56]} 45. Rd6 {[%emt 0:00:22]} Rc8 {[%emt 0:00:29]} 46. b7 {[%emt 0:01:10]} Rc3+ {[%emt 0:00:51]} 47. Kb4 {[%emt 0:00:09]} Rxc2 {[%emt 0:00:12]} 48. Rd8 {[%emt 0:00:25]} 1-0

[Event "FIDE WYCC Girls U14 2023"]
[Site "Montesilvano"]
[Date "2023.11.13"]
[Round "1.16"]
[White "Ciarletta, Iris"]
[Black "Bajic, Marija"]
[Result "1-0"]
[ECO "D37"]
[WhiteElo "1882"]
[BlackElo "1412"]
[Annotator "NA"]
[PlyCount "51"]
[EventDate "2023.11.13"]
[EventType "swiss"]
[EventCountry "ITA"]
[SourceTitle "playchess.com"]
[Source "ChessBase"]
[SourceQuality "1"]
[TimeControl "40/5400+30:1800+30"]

1. d4 {[%emt 0:00:18]} d5 {[%emt 0:00:41]} 2. c4 {[%emt 0:00:35]} e6 {[%emt 0:00:58]} 3. Nc3 {[%emt 0:00:54]} Nf6 {[%emt 0:01:21]} 4. Nf3 {[%emt 0:00:56]} Be7 {[%emt 0:02:53]} 5. Bf4 {[%emt 0:01:08]} Bd7 {[%emt 0:03:40]} 6. Qb3 {[%emt 0:07:33]} Bc6 {[%emt 0:04:49]} 7. Ne5 {[%emt 0:03:15]} O-O {[%emt 0:04:59]} 8. Nxc6 {[%emt 0:07:08]} Nxc6 {[%emt 0:10:51]} 9. e3 {[%emt 0:00:40]} b6 {[%emt 0:06:27]} 10. cxd5 {[%emt 0:02:09]} Nxd5 {[%emt 0:07:58]} 11. Nxd5 {[%emt 0:01:23]} exd5 {[%emt 0:06:17]} 12. a3 {[%emt 0:05:58]} Na5 {[%emt 0:04:57]} 13. Qc2 {[%emt 0:02:21]} c5 {[%emt 0:03:11]} 14. dxc5 {[%emt 0:01:07]} bxc5 {[%emt 0:00:46]} 15. Bd3 {[%emt 0:01:01]} h6 {[%emt 0:01:31]} 16. O-O {[%emt 0:01:43]} c4 {[%emt 0:04:32]} 17. Bf5 {[%emt 0:01:53]} Nb3 {[%emt 0:02:55]} 18. Rad1 {[%emt 0:02:12]} Qa5 {[%emt 0:03:02]} 19. e4 {[%emt 0:02:51]} dxe4 {[%emt 0:04:42]} 20. Bxe4 {[%emt 0:02:10]} Rac8 {[%emt 0:02:07]} 21. Bb7 {[%emt 0:03:11]} Rc5 {[%emt 0:01:24]} 22. Rfe1 {[%emt 0:00:47]} Re8 {[%emt 0:02:19]} 23. Bd6 {[%emt 0:02:20]} Kf8 {[%emt 0:02:09]} 24. Qh7 {[%emt 0:09:14]} f6 {[%emt 0:01:32]} 25. Bxc5 {[%emt 0:03:47]} Bxc5 {[%emt 0:01:54]} 26. Qh8+ {[%emt 0:00:16]} 1-0